[Event "Maria Albulet Memorial 2017"]
[Site "Braila"]
[Date "2017.10.09"]
[Round "3"]
[White "Vorniceanu, Alina"]
[Black "Babiy, Olga"]
[Result "0-1"]
[ECO "B23"]
[WhiteElo "1498"]
[BlackElo "2317"]
[Annotator "NA"]
[PlyCount "114"]
[EventDate "2017.??.??"]
[EventCountry "ROU"]
[SourceTitle "playchess.com"]
[Source "ChessBase"]
[SourceQuality "1"]
[TimeControl "40/5400+30:900+30"]

1. e4 {[%emt 0:00:00]} c5 {[%emt 0:00:09]} 2. Nc3 {[%emt 0:00:00]} e6 {[%emt 0:00:32]} 3. g3 {[%emt 0:00:09]} a6 {[%emt 0:00:19]} 4. Bg2 {[%emt 0:00:06]} b5 {[%emt 0:00:06]} 5. f4 {[%emt 0:00:10]} Bb7 {[%emt 0:00:13]} 6. d3 {[%emt 0:00:16]} b4 {[%emt 0:00:23] B23: Closed Sicilian: Lines without g3} (6... Nf6 7. Nf3 b4 8. Ne2 Nc6 9. O-O Be7 10. h3 d5 11. e5 Nd7 12. Be3 O-O 13. g4 d4 14. Bd2 f6 15. exf6 Nxf6 {½-½ (29) Jakubowski,K (2562)-Kempinski,R (2647) Poland 2015}) 7. Nce2 {[%emt 0:00:14]} d5 {[%emt 0:00:13]} 8. e5 {[%emt 0:00:32]} h5 {[%emt 0:00:42] LiveBook: 4 Games} 9. Nf3 {[%emt 0:01:03]} Nc6 {[%emt 0:00:16]} 10. O-O {[%emt 0:00:47]} Nh6 {[%emt 0:00:35]} 11. Be3 {[%emt 0:01:15]} Ng4 {[%emt 0:00:51]} 12. Bf2 {[%emt 0:00:33]} Be7 $146 {[%emt 0:01:00]} ({Predecessor:} 12... Nxf2 13. Rxf2 Ne7 14. c3 {0-1 (60) Perez,F (2260)-Flear,C (2149) France 2010}) 13. h3 {[%emt 0:00:50]} Nxf2 {[%emt 0:00:08]} 14. Rxf2 {[%emt 0:00:10]} g5 {[%emt 0:00:47]} 15. Qd2 {[%emt 0:02:53]} g4 {[%emt 0:01:48]} 16. Nh2 {[%emt 0:00:51]} f5 {[%emt 0:02:16]} (16... gxh3 $15 17. Bxh3 h4) 17. exf6 {[%emt 0:04:49]} Bxf6 {[%emt 0:00:18]} 18. c3 {[%emt 0:01:26]} Rg8 {[%emt 0:02:35]} 19. Qe3 {[%emt 0:01:43]} Qd6 {[%emt 0:03:27]} (19... Qe7 $11) 20. f5 {[%emt 0:03:27]} e5 {[%emt 0:01:28]} 21. Qh6 {[%emt 0:23:17]} (21. h4 $15) 21... Rh8 {[%emt 0:03:02]} 22. Qe3 {[%emt 0:02:44]} gxh3 {[%emt 0:01:43]} 23. Bxh3 {[%emt 0:00:47] [#]} O-O-O $1 {[%emt 0:00:46]} 24. cxb4 {[%emt 0:00:39]} cxb4 {[%emt 0:00:10]} 25. Rc1 {[%emt 0:02:01]} Kb8 {[%emt 0:00:32]} 26. Qb6 {[%emt 0:02:41]} e4 {[%emt 0:02:38]} 27. dxe4 {[%emt 0:06:08]} dxe4 {[%emt 0:00:19]} 28. Nf1 {[%emt 0:03:29]} Ne5 {[%emt 0:03:27]} 29. Qxd6+ {[%emt 0:02:07]} Rxd6 {[%emt 0:00:04]} 30. Rb1 {[%emt 0:04:32]} e3 {[%emt 0:02:36]} 31. Nxe3 {[%emt 0:02:24]} Nf3+ {[%emt 0:00:18]} 32. Kf1 {[%emt 0:01:07]} Nd2+ {[%emt 0:00:10]} 33. Ke1 $19 {[%emt 0:00:16]} Nxb1 {[%emt 0:00:09]} 34. Nc4 {[%emt 0:00:45]} Rd7 {[%emt 0:00:25]} 35. Nf4 {[%emt 0:02:29]} Bd4 {[%emt 0:01:17]} 36. Re2 {[%emt 0:01:39]} Bf3 {[%emt 0:00:14]} 37. Re6 {[%emt 0:01:05]} Bc5 {[%emt 0:00:13]} 38. Ne3 {[%emt 0:00:58]} Bg4 {[%emt 0:01:23]} 39. Re5 {[%emt 0:03:32]} Bxe3 {[%emt 0:01:18]} 40. Rxe3 {[%emt 0:00:00]} Rd1+ {[%emt 0:00:19]} 41. Kf2 {[%emt 0:01:05]} Rd2+ {[%emt 0:00:06]} 42. Ke1 {[%emt 0:00:50]} Rc8 {[%emt 0:00:20]} 43. Nd3 {[%emt 0:00:40]} Bxh3 {[%emt 0:00:15]} 44. f6 {[%emt 0:00:32]} Rf8 {[%emt 0:00:45]} 45. Nf2 {[%emt 0:01:38]} Rxf6 {[%emt 0:01:02]} 46. Re2 {[%emt 0:00:53]} Rxe2+ {[%emt 0:00:10]} 47. Kxe2 {[%emt 0:00:03]} Bg4+ {[%emt 0:00:08]} 48. Ke3 {[%emt 0:00:14]} Rf3+ {[%emt 0:00:05]} 49. Ke2 {[%emt 0:00:25]} Rxg3+ {[%emt 0:00:08]} 50. Kf1 {[%emt 0:00:09]} h4 {[%emt 0:00:18]} 51. Nxg4 {[%emt 0:00:09]} Rxg4 {[%emt 0:00:05]} 52. Ke2 {[%emt 0:00:13]} h3 {[%emt 0:00:07]} 53. Kd1 {[%emt 0:00:10]} h2 {[%emt 0:00:06]} 54. Ke2 {[%emt 0:00:12]} h1=Q {[%emt 0:00:08]} 55. Ke3 {[%emt 0:00:05]} Qe4+ {[%emt 0:00:08]} 56. Kf2 {[%emt 0:00:06]} Rg2+ {[%emt 0:00:06]} 57. Kf1 {[%emt 0:00:07]} Qe2# 0-1

[Event "Maria Albulet Memorial 2017"]
[Site "Braila"]
[Date "2017.10.10"]
[Round "5"]
[White "Petrenko, Svetlana"]
[Black "Uzuneanu, Gabriela"]
[Result "1-0"]
[ECO "A43"]
[WhiteElo "2140"]
[BlackElo "1564"]
[Annotator "NA"]
[PlyCount "57"]
[EventDate "2017.??.??"]
[EventCountry "ROU"]
[SourceTitle "playchess.com"]
[Source "ChessBase"]
[SourceQuality "1"]
[TimeControl "40/5400+30:900+30"]

1. d4 {[%emt 0:00:00]} c5 {[%emt 0:00:06]} 2. d5 {[%emt 0:00:00]} b5 {[%emt 0:00:03]} 3. e4 {[%emt 0:00:04]} a6 {[%emt 0:00:04]} 4. a4 {[%emt 0:00:59]} b4 {[%emt 0:00:03]} 5. a5 {[%emt 0:00:37]} d6 {[%emt 0:00:29]} 6. Bc4 {[%emt 0:04:19]} g6 {[%emt 0:00:13]} 7. f4 {[%emt 0:04:50]} Bg7 {[%emt 0:01:52]} 8. Nf3 {[%emt 0:00:14]} Nd7 $16 {[%emt 0:07:57]} 9. Qe2 {[%emt 0:04:15]} f6 {[%emt 0:04:39]} 10. b3 {[%emt 0:06:58]} Qc7 {[%emt 0:04:43]} 11. Bb2 {[%emt 0:00:32]} Nh6 {[%emt 0:05:33]} 12. O-O {[%emt 0:11:56]} Nf7 {[%emt 0:09:19]} 13. Nbd2 {[%emt 0:04:58]} O-O {[%emt 0:06:25]} 14. h4 {[%emt 0:07:01]} Kh8 {[%emt 0:12:22]} 15. g4 {[%emt 0:04:07]} Nd8 {[%emt 0:03:43]} 16. Nh2 {[%emt 0:11:30]} Nb8 {[%emt 0:08:34]} 17. e5 {[%emt 0:09:35]} dxe5 {[%emt 0:14:55]} 18. fxe5 {[%emt 0:00:09]} f5 {[%emt 0:00:09]} 19. g5 {[%emt 0:04:29]} Nd7 {[%emt 0:03:56]} 20. Ndf3 {[%emt 0:02:06]} Nf7 {[%emt 0:08:22]} 21. Rfe1 {[%emt 0:00:19]} h6 {[%emt 0:00:59]} 22. gxh6 {[%emt 0:06:55]} Nxh6 {[%emt 0:00:08]} 23. Ng5 {[%emt 0:00:17]} Nb8 {[%emt 0:01:34]} 24. h5 {[%emt 0:00:39]} gxh5 {[%emt 0:02:00]} 25. Qxh5 {[%emt 0:00:20]} Ra7 {[%emt 0:01:37]} 26. e6 {[%emt 0:04:43]} Qg3+ {[%emt 0:01:22]} 27. Kh1 {[%emt 0:00:12]} Bb7 {[%emt 0:02:11]} 28. Qxh6+ {[%emt 0:00:25]} Kg8 {[%emt 0:00:06]} 29. Qxg7# {[%emt 0:00:13]} 1-0

[Event "Maria Albulet Memorial 2017"]
[Site "Braila"]
[Date "2017.10.10"]
[Round "5"]
[White "Miladinovic, Lena"]
[Black "Doluhanova, Evgeniya"]
[Result "1/2-1/2"]
[ECO "E53"]
[WhiteElo "2138"]
[BlackElo "2328"]
[Annotator "NA"]
[PlyCount "92"]
[EventDate "2017.??.??"]
[EventCountry "ROU"]
[SourceTitle "playchess.com"]
[Source "ChessBase"]
[SourceQuality "1"]
[TimeControl "40/5400+30:900+30"]

{[%evp 12,92,10,14,32767,4,32767,32767,0,0,32767,32767,32767,32767,32767,32767,32767,32767,32767,32767,32767,32767,32767,32767,32767,32767,32767,32767,32767,32767,32767,32767,32767,32767,32767,32767,32767,32767,-18,32767,-52,32767,32767,-56,32767,-60,-31,-37,0,-7,0,0,0,-7,-14,-20,0,0,0,0,0,0,0,0,0,0,0,0,8,0,0,4,8,0,0,0,0,0,32767,0,0,0,0]} 1. c4 {[%emt 0:00:00]} Nf6 {[%emt 0:00:13]} 2. Nc3 {[%emt 0:00:00]} e6 {[%emt 0:00:22]} 3. Nf3 {[%emt 0:00:00]} d5 {[%emt 0:00:22]} 4. d4 {[%emt 0:00:00]} Bb4 {[%emt 0:01:51]} 5. e3 {[%emt 0:00:00]} O-O {[%emt 0:02:47]} 6. Bd3 {[%emt 0:00:08]} c5 {[%emt 0:05:09]} 7. O-O {[%emt 0:01:12]} cxd4 {[%emt 0:01:40]} 8. exd4 {[%emt 0:00:18]} dxc4 {[%emt 0:00:20]} 9. Bxc4 {[%emt 0:00:07]} b6 {[%emt 0:01:01]} 10. a3 {[%emt 0:07:15]} Bxc3 {[%emt 0:11:32]} 11. bxc3 {[%emt 0:00:09]} Bb7 {[%emt 0:00:21] E54: Nimzo-Indian: Rubinstein: Main Line: 7...dxc4 8 Bxc4} 12. Re1 {[%emt 0:16:50]} Qc7 {[%emt 0:09:40]} 13. Ne5 {[%emt 0:08:29]} (13. Bd3 Qxc3 14. Bg5 Nbd7 15. Re3 Qc6 16. Rc1 Qd5 17. Rb1 Rac8 18. Rb5 Qc6 {0-1 (26) Aagaard,J (2522)-Akopian,V (2681) Porto Carras 2011}) 13... Nbd7 {[%emt 0:03:01]} 14. Bd3 {[%emt 0:09:34]} Nxe5 {[%emt 0:04:10]} 15. dxe5 $146 {[%emt 0:11:39]} ({Predecessor:} 15. Rxe5 Qc6 16. Rg5 Qxc3 17. Rb1 Rac8 18. Bb2 Qc7 19. d5 Qf4 20. h4 h6 21. g3 {1-0 (21) Kobese,W (2396)-Paschall,W (2330) Budapest 2008}) 15... Qc6 {[%emt 0:00:43]} 16. Bf1 {[%emt 0:09:12]} Rfd8 {[%emt 0:03:27]} 17. Qe2 {[%emt 0:04:10]} Ne4 {[%emt 0:04:30]} 18. c4 {[%emt 0:04:45]} Qc5 {[%emt 0:18:00]} 19. Bf4 {[%emt 0:01:42]} Rd7 {[%emt 0:12:40]} 20. Qc2 {[%emt 0:03:11]} Qc6 {[%emt 0:04:38]} 21. Rad1 {[%emt 0:03:53]} Rad8 {[%emt 0:02:48]} 22. Rxd7 {[%emt 0:00:45]} Rxd7 {[%emt 0:00:05]} 23. Rd1 {[%emt 0:01:52]} h6 {[%emt 0:05:14]} 24. Re1 {[%emt 0:05:03]} Nc5 {[%emt 0:02:04]} 25. Re3 {[%emt 0:01:02]} Qa4 {[%emt 0:00:25]} 26. Qxa4 {[%emt 0:07:07]} Nxa4 {[%emt 0:00:04]} 27. Re1 {[%emt 0:01:14]} Ba6 {[%emt 0:01:48]} 28. f3 {[%emt 0:02:58]} Nc5 {[%emt 0:04:49]} 29. Be3 {[%emt 0:01:19]} Rc7 {[%emt 0:00:28]} 30. Rd1 {[%emt 0:00:29]} Nd7 {[%emt 0:00:35]} 31. f4 {[%emt 0:00:11]} Kf8 {[%emt 0:00:27]} 32. c5 {[%emt 0:00:38]} Bxf1 {[%emt 0:00:11]} 33. cxb6 {[%emt 0:00:08]} axb6 {[%emt 0:00:47]} 34. Kxf1 {[%emt 0:00:16]} Ke8 {[%emt 0:00:25]} 35. Ke2 {[%emt 0:00:30]} Ra7 {[%emt 0:00:44]} 36. Rb1 {[%emt 0:01:08]} Rxa3 {[%emt 0:00:28]} 37. Bxb6 {[%emt 0:00:11]} Nxb6 {[%emt 0:00:34]} 38. Rxb6 {[%emt 0:00:03]} g5 {[%emt 0:00:24]} 39. fxg5 {[%emt 0:00:48]} Ra5 {[%emt 0:00:39]} 40. Rb8+ {[%emt 0:00:00]} Ke7 {[%emt 0:00:04]} 41. gxh6 {[%emt 0:08:03]} Rxe5+ {[%emt 0:00:05]} 42. Kf3 {[%emt 0:00:07]} Rh5 {[%emt 0:00:19]} 43. Rh8 {[%emt 0:03:44]} Rxh2 {[%emt 0:02:43]} 44. g4 {[%emt 0:00:55]} f6 {[%emt 0:07:38]} 45. Kg3 {[%emt 0:01:42]} Rh1 {[%emt 0:00:09]} 46. Kg2 {[%emt 0:01:06]} Rh4 $11 {[%emt 0:00:04]} 1/2-1/2

[Event "Maria Albulet Memorial 2017"]
[Site "Braila"]
[Date "2017.10.10"]
[Round "5"]
[White "Makropoulou, Marina"]
[Black "Babiy, Olga"]
[Result "1/2-1/2"]
[ECO "B49"]
[WhiteElo "2136"]
[BlackElo "2317"]
[Annotator "ChessBase"]
[PlyCount "168"]
[EventDate "2017.??.??"]
[EventCountry "ROU"]
[SourceTitle "playchess.com"]
[Source "ChessBase"]
[SourceQuality "1"]
[TimeControl "40/5400+30:900+30"]

1. e4 {[%emt 0:00:00]} c5 {[%emt 0:00:03]} 2. Nf3 {[%emt 0:00:00]} e6 {[%emt 0:00:04]} 3. d4 {[%emt 0:00:00]} cxd4 {[%emt 0:00:04]} 4. Nxd4 {[%emt 0:00:01]} Nc6 {[%emt 0:00:08]} 5. Nc3 {[%emt 0:00:50]} Qc7 {[%emt 0:00:07]} 6. Be2 {[%emt 0:01:08]} a6 {[%emt 0:00:07]} 7. Be3 {[%emt 0:04:36]} Nf6 {[%emt 0:00:19]} 8. O-O {[%emt 0:01:11]} Bb4 {[%emt 0:00:11]} 9. Na4 {[%emt 0:01:00]} Be7 {[%emt 0:00:12]} 10. Nxc6 {[%emt 0:01:06]} bxc6 {[%emt 0:00:06]} 11. Nb6 {[%emt 0:00:20]} Rb8 {[%emt 0:00:05]} 12. Nxc8 {[%emt 0:00:19]} Qxc8 {[%emt 0:00:06]} 13. Bd4 {[%emt 0:00:19]} c5 {[%emt 0:00:28]} 14. Be5 {[%emt 0:00:58]} Rb6 {[%emt 0:00:09]} 15. b3 {[%emt 0:01:26]} O-O {[%emt 0:05:46]} 16. Qd3 {[%emt 0:09:13]} d6 {[%emt 0:05:13]} 17. Bb2 {[%emt 0:01:44]} Nd7 {[%emt 0:02:29]} 18. Rad1 {[%emt 0:00:55]} Bf6 {[%emt 0:03:48]} 19. Bc1 {[%emt 0:00:14]} Rd8 {[%emt 0:18:46]} 20. Bd2 {[%emt 0:23:34]} Ne5 {[%emt 0:06:51]} 21. Qg3 {[%emt 0:01:04]} Nc6 {[%emt 0:01:36]} 22. Kh1 {[%emt 0:02:11]} Rd7 {[%emt 0:11:04]} 23. c3 {[%emt 0:05:31]} Qd8 {[%emt 0:09:47]} 24. f4 {[%emt 0:00:42]} d5 {[%emt 0:07:39]} 25. e5 {[%emt 0:00:55]} Bh4 {[%emt 0:00:51]} 26. Qh3 {[%emt 0:01:19]} g6 {[%emt 0:04:14]} 27. Bc1 {[%emt 0:10:05]} Be7 {[%emt 0:04:48]} 28. Qf3 {[%emt 0:02:15]} a5 {[%emt 0:00:59]} 29. Qf2 {[%emt 0:10:30]} Qb8 {[%emt 0:04:08]} 30. Bd3 {[%emt 0:06:45]} Qa7 {[%emt 0:05:09]} 31. Bc2 {[%emt 0:00:32]} Bf8 {[%emt 0:00:54]} 32. Rd3 {[%emt 0:00:55]} Rbb7 {[%emt 0:01:20]} 33. Rh3 {[%emt 0:00:15]} Qa6 {[%emt 0:08:45]} 34. Bd3 {[%emt 0:02:03]} c4 {[%emt 0:00:10]} 35. bxc4 {[%emt 0:00:20]} dxc4 {[%emt 0:00:02]} 36. Be4 {[%emt 0:00:10]} Bg7 {[%emt 0:01:14]} 37. Qh4 {[%emt 0:02:05]} h6 {[%emt 0:00:01]} 38. f5 {[%emt 0:00:45]} exf5 {[%emt 0:00:16]} 39. Bxh6 {[%emt 0:00:39]} Bxe5 {[%emt 0:00:10]} 40. Bxf5 {[%emt 0:00:00]} Rd6 {[%emt 0:01:45]} 41. Bf4 {[%emt 0:02:28]} Qb5 {[%emt 0:00:45]} 42. Qh7+ {[%emt 0:06:20]} Kf8 {[%emt 0:00:02]} 43. Bh6+ {[%emt 0:01:16]} Ke7 {[%emt 0:01:28]} 44. Bxg6 {[%emt 0:02:31]} Kd8 {[%emt 0:00:52]} 45. Bg5+ {[%emt 0:08:33]} Kc7 {[%emt 0:06:19]} 46. Qxf7+ {[%emt 0:03:07]} Kb6 {[%emt 0:01:41]} 47. Qf2+ {[%emt 0:00:35]} Ka6 {[%emt 0:00:03]} 48. Be4 {[%emt 0:01:15]} a4 {[%emt 0:03:43]} 49. Rf3 {[%emt 0:02:41]} a3 {[%emt 0:02:01]} 50. h4 {[%emt 0:00:32]} Qa5 {[%emt 0:01:05]} 51. Qe3 {[%emt 0:01:10]} Rg7 {[%emt 0:02:27]} 52. Rf5 {[%emt 0:00:49]} Qxc3 {[%emt 0:00:35]} 53. Bxc6 {[%emt 0:00:34]} Qxe3 {[%emt 0:00:30]} 54. Bxe3 {[%emt 0:00:10]} Bd4 {[%emt 0:00:34]} 55. Bxd4 {[%emt 0:00:49]} Rxd4 {[%emt 0:00:02]} 56. Bf3 {[%emt 0:01:32]} Rxh4+ {[%emt 0:00:22]} 57. Kg1 {[%emt 0:00:03]} Rc7 {[%emt 0:01:03]} 58. Rc1 {[%emt 0:00:45]} Rd4 {[%emt 0:00:26]} 59. Be2 {[%emt 0:00:46]} Kb6 {[%emt 0:00:12]} 60. Rc2 {[%emt 0:00:22]} c3 {[%emt 0:00:36]} 61. Kf2 {[%emt 0:00:31]} Rb4 {[%emt 0:00:40]} 62. Rf3 {[%emt 0:00:23]} Rb2 {[%emt 0:00:24]} 63. Rcxc3 {[%emt 0:00:18]} Rxc3 {[%emt 0:00:35]} 64. Rxc3 {[%emt 0:00:02]} Rxa2 {[%emt 0:00:07]} 65. g4 {[%emt 0:01:00]} Ka5 {[%emt 0:00:06]} 66. g5 {[%emt 0:00:25]} Kb4 {[%emt 0:00:04]} 67. Rc4+ {[%emt 0:00:38]} Kb3 {[%emt 0:00:08]} 68. Rc8 {[%emt 0:00:35]} Rd2 {[%emt 0:01:16]} 69. Rb8+ {[%emt 0:00:16]} Kc3 {[%emt 0:00:17]} 70. Ra8 {[%emt 0:00:46]} Kb2 {[%emt 0:00:49]} 71. g6 {[%emt 0:00:41]} Rd6 {[%emt 0:01:18]} 72. g7 {[%emt 0:00:30]} Rg6 {[%emt 0:00:05]} 73. Rb8+ {[%emt 0:00:27]} Kc3 {[%emt 0:00:50]} 74. Rc8+ {[%emt 0:00:36]} Kb2 {[%emt 0:00:02]} 75. Rb8+ {[%emt 0:00:34]} Kc3 {[%emt 0:00:02]} 76. g8=Q {[%emt 0:00:31]} Rxg8 {[%emt 0:00:05]} 77. Rxg8 {[%emt 0:00:04]} a2 {[%emt 0:00:09]} 78. Ra8 {[%emt 0:00:39]} Kb2 {[%emt 0:00:05]} 79. Rb8+ {[%emt 0:00:06]} Kc3 {[%emt 0:01:48]} 80. Ra8 {[%emt 0:00:26]} Kb2 {[%emt 0:00:05]} 81. Rb8+ {[%emt 0:00:36]} Kc3 {[%emt 0:00:11]} 82. Ra8 {[%emt 0:00:35]} Kb2 {[%emt 0:00:05]} 83. Rb8+ {[%emt 0:00:40]} Kc3 {[%emt 0:00:09]} 84. Ra8 {[%emt 0:00:10]} Kb2 {[%emt 0:00:05]} 1/2-1/2

[Event "Maria Albulet Memorial 2017"]
[Site "Braila"]
[Date "2017.10.10"]
[Round "5"]
[White "Cosman, Andreea-Marioara"]
[Black "Rakhmangulova, Anastasiya"]
[Result "1-0"]
[ECO "A59"]
[WhiteElo "2125"]
[BlackElo "2242"]
[Annotator "ChessBase"]
[PlyCount "95"]
[EventDate "2017.??.??"]
[EventCountry "ROU"]
[SourceTitle "playchess.com"]
[Source "ChessBase"]
[SourceQuality "1"]
[TimeControl "40/5400+30:900+30"]

1. d4 {[%emt 0:00:00]} Nf6 {[%emt 0:00:06]} 2. c4 {[%emt 0:00:00]} c5 {[%emt 0:00:04]} 3. d5 {[%emt 0:00:00]} b5 {[%emt 0:00:05]} 4. cxb5 {[%emt 0:00:00]} a6 {[%emt 0:00:04]} 5. bxa6 {[%emt 0:00:02]} d6 {[%emt 0:00:05]} 6. Nc3 {[%emt 0:00:11]} Bxa6 {[%emt 0:00:06]} 7. e4 {[%emt 0:00:13]} Bxf1 {[%emt 0:00:06]} 8. Kxf1 {[%emt 0:00:05]} g6 {[%emt 0:00:08]} 9. Nf3 {[%emt 0:00:05]} Bg7 {[%emt 0:00:19]} 10. g3 {[%emt 0:00:07]} O-O {[%emt 0:00:05]} 11. Kg2 {[%emt 0:00:04]} Nbd7 {[%emt 0:00:30]} 12. Qe2 {[%emt 0:01:01]} Qb6 {[%emt 0:11:28]} 13. a4 {[%emt 0:02:29]} Qa6 {[%emt 0:02:20]} 14. Nb5 {[%emt 0:09:10]} e6 {[%emt 0:06:47]} 15. dxe6 {[%emt 0:11:44]} fxe6 {[%emt 0:00:05]} 16. Bf4 {[%emt 0:00:09]} d5 {[%emt 0:05:09]} 17. exd5 {[%emt 0:10:06]} exd5 {[%emt 0:02:06]} 18. Qc2 {[%emt 0:00:29]} Ne4 {[%emt 0:17:16]} 19. Nc7 {[%emt 0:14:40]} Qc6 {[%emt 0:00:36]} 20. Rhd1 {[%emt 0:16:13]} d4 {[%emt 0:21:30]} 21. Nxa8 {[%emt 0:08:54]} g5 {[%emt 0:07:39]} 22. Re1 {[%emt 0:04:57]} Ndf6 {[%emt 0:00:47]} 23. Ne5 {[%emt 0:04:02]} Qxa8 {[%emt 0:01:00]} 24. f3 {[%emt 0:00:12]} gxf4 {[%emt 0:03:26]} 25. fxe4 {[%emt 0:00:27]} Kh8 {[%emt 0:03:45]} 26. gxf4 {[%emt 0:07:42]} Nh5 {[%emt 0:00:48]} 27. Nd3 {[%emt 0:00:48]} Nxf4+ {[%emt 0:01:43]} 28. Nxf4 {[%emt 0:00:11]} Rxf4 {[%emt 0:00:02]} 29. Ra3 {[%emt 0:00:55]} d3 {[%emt 0:09:22]} 30. Qxd3 {[%emt 0:03:29]} Bd4 {[%emt 0:01:14]} 31. Kh1 {[%emt 0:03:52]} Qg8 {[%emt 0:02:51]} 32. a5 {[%emt 0:02:09]} Rf2 {[%emt 0:03:54]} 33. Qg3 {[%emt 0:00:41]} Qf8 {[%emt 0:00:31]} 34. Raa1 {[%emt 0:01:05]} Qa8 {[%emt 0:01:00]} 35. a6 {[%emt 0:00:33]} Rxb2 {[%emt 0:00:13]} 36. a7 {[%emt 0:00:39]} Rb7 {[%emt 0:00:10]} 37. Qd6 {[%emt 0:00:27]} Bxa1 {[%emt 0:00:55]} 38. Rxa1 {[%emt 0:00:16]} Rb1+ {[%emt 0:00:06]} 39. Rxb1 {[%emt 0:00:28]} Qxe4+ {[%emt 0:00:02]} 40. Kg1 {[%emt 0:00:00]} Qxb1+ {[%emt 0:00:02]} 41. Kf2 {[%emt 0:02:47]} Qa2+ {[%emt 0:07:50]} 42. Kf3 {[%emt 0:01:04]} Qa3+ {[%emt 0:04:36]} 43. Kf4 {[%emt 0:02:25]} Qc1+ {[%emt 0:04:11]} 44. Kf5 {[%emt 0:01:29]} Qc2+ {[%emt 0:01:26]} 45. Ke6 {[%emt 0:03:00]} Qa2+ {[%emt 0:00:07]} 46. Kf6 {[%emt 0:00:27]} Qf2+ {[%emt 0:01:05]} 47. Ke7 {[%emt 0:01:00]} Kg7 {[%emt 0:00:48]} 48. Qg3+ {[%emt 0:00:10]} 1-0

[Event "Maria Albulet Memorial 2017"]
[Site "Braila"]
[Date "2017.10.10"]
[Round "5"]
[White "Djukic, Sandra"]
[Black "Andres, Marina-Corina"]
[Result "1-0"]
[ECO "D58"]
[WhiteElo "2084"]
[BlackElo "1581"]
[Annotator "NA"]
[PlyCount "61"]
[EventDate "2017.??.??"]
[EventCountry "ROU"]
[SourceTitle "playchess.com"]
[Source "ChessBase"]
[SourceQuality "1"]
[TimeControl "40/5400+30:900+30"]

1. d4 {[%emt 0:00:00]} d5 {[%emt 0:00:05]} 2. c4 {[%emt 0:00:00]} e6 {[%emt 0:00:03]} 3. Nf3 {[%emt 0:01:26]} Be7 {[%emt 0:00:09]} 4. Nc3 {[%emt 0:00:32]} Nf6 {[%emt 0:00:08]} 5. Bg5 {[%emt 0:00:55]} h6 {[%emt 0:00:07]} 6. Bh4 {[%emt 0:00:46]} O-O {[%emt 0:00:08]} 7. e3 {[%emt 0:00:02]} b6 {[%emt 0:01:14]} 8. Qb3 {[%emt 0:03:18]} dxc4 {[%emt 0:01:36]} 9. Bxc4 {[%emt 0:00:36]} Ba6 {[%emt 0:03:51]} 10. O-O {[%emt 0:05:56]} Bxc4 {[%emt 0:00:13]} 11. Qxc4 $14 {[%emt 0:00:05]} c5 {[%emt 0:08:49]} 12. dxc5 {[%emt 0:01:07]} Bxc5 {[%emt 0:00:46]} 13. Rad1 {[%emt 0:08:49]} Qc8 {[%emt 0:04:30]} 14. Bxf6 {[%emt 0:08:42]} gxf6 {[%emt 0:00:11]} 15. Qg4+ {[%emt 0:00:54]} Kh8 {[%emt 0:01:22]} 16. Qh4 {[%emt 0:02:40]} Kg7 {[%emt 0:03:41]} 17. Ne4 {[%emt 0:12:55]} Nd7 {[%emt 0:10:59]} 18. Ng3 {[%emt 0:14:52]} Be7 {[%emt 0:04:46]} 19. Rd4 {[%emt 0:07:49]} Qe8 {[%emt 0:05:37]} 20. Qh5 {[%emt 0:18:43]} f5 {[%emt 0:04:16]} 21. Nh4 {[%emt 0:04:03]} Bxh4 {[%emt 0:06:41]} 22. Rxh4 {[%emt 0:02:36]} Rh8 {[%emt 0:00:44]} 23. Qd1 {[%emt 0:00:04]} Nf6 {[%emt 0:02:25]} 24. Qd4 {[%emt 0:00:57]} Rd8 {[%emt 0:01:25]} 25. Nh5+ {[%emt 0:00:17]} Kf8 {[%emt 0:01:08]} 26. Qxf6 {[%emt 0:00:14]} Rh7 {[%emt 0:00:33]} 27. Nf4 {[%emt 0:00:21]} Kg8 {[%emt 0:00:51]} 28. Rh3 {[%emt 0:00:26]} Qf8 {[%emt 0:00:40]} 29. Rg3+ {[%emt 0:00:14]} Rg7 {[%emt 0:00:09]} 30. Rxg7+ {[%emt 0:00:04]} Qxg7 {[%emt 0:00:06]} 31. Qxd8+ {[%emt 0:00:03]} 1-0

[Event "Maria Albulet Memorial 2017"]
[Site "Braila"]
[Date "2017.10.10"]
[Round "5"]
[White "Didiliuc, Dariana-Gabriela"]
[Black "Aciu, Malina-Andreea"]
[Result "0-1"]
[ECO "D26"]
[WhiteElo "1779"]
[BlackElo "2006"]
[Annotator "NA"]
[PlyCount "86"]
[EventDate "2017.??.??"]
[EventCountry "ROU"]
[SourceTitle "playchess.com"]
[Source "ChessBase"]
[SourceQuality "1"]
[TimeControl "40/5400+30:900+30"]

1. d4 {[%emt 0:06:09]} d5 {[%emt 0:00:06]} 2. c4 {[%emt 0:00:18]} dxc4 {[%emt 0:00:05]} 3. Nf3 {[%emt 0:00:09]} Nf6 {[%emt 0:00:03]} 4. e3 {[%emt 0:00:11]} e6 {[%emt 0:00:05]} 5. Bxc4 {[%emt 0:00:15]} a6 {[%emt 0:00:03]} 6. a4 {[%emt 0:00:38]} b6 {[%emt 0:00:04]} 7. O-O {[%emt 0:02:18]} Bb7 {[%emt 0:00:03]} 8. Bd2 {[%emt 0:02:47]} Nbd7 {[%emt 0:02:12]} 9. Bc3 $11 {[%emt 0:02:31]} c5 {[%emt 0:08:30]} 10. Nbd2 {[%emt 0:01:32]} Be7 {[%emt 0:00:26]} 11. Qe2 {[%emt 0:05:06]} O-O {[%emt 0:04:25]} 12. e4 {[%emt 0:03:23]} cxd4 {[%emt 0:07:28]} 13. Bxd4 {[%emt 0:00:34]} Nc5 {[%emt 0:01:17]} 14. e5 {[%emt 0:02:25]} Nd5 {[%emt 0:00:20]} 15. Bxc5 {[%emt 0:05:41]} Bxc5 {[%emt 0:03:50]} 16. Ne4 {[%emt 0:00:24]} Nf4 {[%emt 0:03:35]} 17. Qc2 {[%emt 0:00:21]} h6 {[%emt 0:09:09]} 18. Rfd1 {[%emt 0:04:50]} Qc7 {[%emt 0:00:46]} 19. Bf1 {[%emt 0:00:44]} Bxf2+ {[%emt 0:16:53]} 20. Qxf2 {[%emt 0:00:59]} Bxe4 {[%emt 0:00:04]} 21. Rd4 {[%emt 0:01:34]} Bxf3 {[%emt 0:00:45]} 22. Qxf3 {[%emt 0:00:09]} Ng6 {[%emt 0:00:25]} 23. Re1 {[%emt 0:02:48]} Nxe5 {[%emt 0:02:08]} 24. Qg3 {[%emt 0:00:37]} f6 {[%emt 0:00:05]} 25. Kh1 {[%emt 0:01:43]} Rad8 {[%emt 0:01:21]} 26. Rh4 {[%emt 0:01:04]} Kh7 {[%emt 0:02:20]} 27. Bxa6 {[%emt 0:01:38]} Qc2 {[%emt 0:02:13]} 28. Rb4 {[%emt 0:05:30]} Rd1 {[%emt 0:05:30]} 29. Bf1 {[%emt 0:03:52]} Rfd8 {[%emt 0:00:56]} 30. Rf4 {[%emt 0:07:05]} R8d3 {[%emt 0:11:23]} 31. Bxd3+ {[%emt 0:04:16]} Nxd3 {[%emt 0:00:10]} 32. Ref1 {[%emt 0:00:29]} Nxf4 {[%emt 0:02:17]} 33. Qxf4 {[%emt 0:00:06]} Rxf1+ {[%emt 0:03:10]} 34. Qxf1 {[%emt 0:00:06]} Qxb2 {[%emt 0:00:06]} 35. Qd3+ {[%emt 0:00:20]} f5 {[%emt 0:01:01]} 36. Qd1 {[%emt 0:00:12]} e5 {[%emt 0:00:49]} 37. h3 {[%emt 0:00:07]} e4 {[%emt 0:00:39]} 38. Qd5 {[%emt 0:01:47]} Qc1+ {[%emt 0:01:00]} 39. Kh2 {[%emt 0:00:09]} Qf4+ {[%emt 0:00:10]} 40. Kg1 {[%emt 0:00:00]} e3 {[%emt 0:00:27]} 41. Qa2 {[%emt 0:01:05]} Qd4 {[%emt 0:02:32]} 42. Kh2 {[%emt 0:00:29]} Qe5+ {[%emt 0:00:17]} 43. Kg1 {[%emt 0:00:06]} e2 {[%emt 0:00:10]} 0-1